Body,Body Name,Date,TransNo,Amount � (Excl VAT),Supplier name,Description,Expense Area,Expense Type,Expense Code,
http://opendatacommunities.org/id/london-borough-council/sutton,London Borough of Sutton,03/08/2020,1300912,13.43 , AMAZON.CO.UK DI4XJ2X05,STATIONARY,Chief Executive's Directorate,Education Equipment,F009,
http://opendatacommunities.org/id/london-borough-council/sutton,London Borough of Sutton,25/08/2020,1300912,9.49 , SAINSBURYS SACAT 2006,GROCERIES,Chief Executive's Directorate,Provisions - General,F150,
http://opendatacommunities.org/id/london-borough-council/sutton,London Borough of Sutton,17/08/2020,1300912,11.10 , SAINSBURYS SACAT 2006,GROCERIES,Chief Executive's Directorate,Provisions - General,F150,
http://opendatacommunities.org/id/london-borough-council/sutton,London Borough of Sutton,03/08/2020,1300912,20.95 , SAINSBURYS 2006,GROCERIES,Chief Executive's Directorate,Provisions - General,F150,
http://opendatacommunities.org/id/london-borough-council/sutton,London Borough of Sutton,10/08/2020,1300912,49.98 , BT SHOP,EQUIPMENT FOR CLIENT,Peoples Services Directorate,Personal Requisites,F106,
http://opendatacommunities.org/id/london-borough-council/sutton,London Borough of Sutton,03/08/2020,1300912,78.66 , AMZNMKTPLACE,GOOD FOR SAFETY CHECK,Peoples Services Directorate,Personal Requisites,F106,
http://opendatacommunities.org/id/london-borough-council/sutton,London Borough of Sutton,24/08/2020,1300912,(21.65), UBER    EATS,INCORRECT ORDER HAS BEEN REFUNDED,Peoples Services Directorate,Other Services,F340,
http://opendatacommunities.org/id/london-borough-council/sutton,London Borough of Sutton,22/08/2020,1300912,25.19 , UBER    EATS,TAKEAWAY ORDERED,Peoples Services Directorate,Other Services,F340,
http://opendatacommunities.org/id/london-borough-council/sutton,London Borough of Sutton,20/08/2020,1300912,7.17 , UBER    TRIP,TRIP TO ACTIVITY,Peoples Services Directorate,Other Services,F340,
http://opendatacommunities.org/id/london-borough-council/sutton,London Borough of Sutton,20/08/2020,1300912,5.74 , UBER    TRIP,TRIP TO ACTIVITY,Peoples Services Directorate,Other Services,F340,
http://opendatacommunities.org/id/london-borough-council/sutton,London Borough of Sutton,20/08/2020,1300912,21.65 , UBER    EATS,WEEKLY TAKEAWAY EU,Peoples Services Directorate,Other Services,F340,
http://opendatacommunities.org/id/london-borough-council/sutton,London Borough of Sutton,18/08/2020,1300912,63.79 , TESCO STORE 3235,WEEKLY SHOP AND HOUSEHOLD ITEMS EU,Peoples Services Directorate,Other Services,F340,
http://opendatacommunities.org/id/london-borough-council/sutton,London Borough of Sutton,14/08/2020,1300912,5.00 , PERI CHICKEN BITES LTD,WEEKLY TAKEAWAY EU,Peoples Services Directorate,Other Services,F340,
http://opendatacommunities.org/id/london-borough-council/sutton,London Borough of Sutton,13/08/2020,1300912,6.67 , UBER    TRIP,CANCELLED TRIP EU,Peoples Services Directorate,Other Services,F340,
http://opendatacommunities.org/id/london-borough-council/sutton,London Borough of Sutton,11/08/2020,1300912,78.62 , SHEIN.COM,NEW CLOTHES PURCHASED FOLLOWING MOVE TO THORNTON ROAD EU,Peoples Services Directorate,Other Services,F340,
http://opendatacommunities.org/id/london-borough-council/sutton,London Borough of Sutton,11/08/2020,1300912,74.12 , AMZNMKTPLACE,HOUSEHOLD ITEMS AND FURNISHINGS EU,Peoples Services Directorate,Other Services,F340,
http://opendatacommunities.org/id/london-borough-council/sutton,London Borough of Sutton,10/08/2020,1300912,68.47 , TESCO STORE 3235,WEEKLY SHOP AND HOUSEHOLD ITEMS EU,Peoples Services Directorate,Other Services,F340,
http://opendatacommunities.org/id/london-borough-council/sutton,London Borough of Sutton,07/08/2020,1300912,2.07 , UBER    TRIP,TRIP TO ACTIVITY EU,Peoples Services Directorate,Other Services,F340,
http://opendatacommunities.org/id/london-borough-council/sutton,London Borough of Sutton,07/08/2020,1300912,9.54 , UBER    TRIP,TRIP TO ACTIVITY EU,Peoples Services Directorate,Other Services,F340,
http://opendatacommunities.org/id/london-borough-council/sutton,London Borough of Sutton,07/08/2020,1300912,4.17 , IZ  GREAT SEASONAL EVE,DAY TRIP OUT EU,Peoples Services Directorate,Other Services,F340,
http://opendatacommunities.org/id/london-borough-council/sutton,London Borough of Sutton,07/08/2020,1300912,21.25 , VILLANI ICES,LUNCH TREAT FOR EU,Peoples Services Directorate,Other Services,F340,
http://opendatacommunities.org/id/london-borough-council/sutton,London Borough of Sutton,07/08/2020,1300912,2.50 , IZ  OCEANGUILD LIMITED,DAY TRIP OUT EU,Peoples Services Directorate,Other Services,F340,
http://opendatacommunities.org/id/london-borough-council/sutton,London Borough of Sutton,07/08/2020,1300912,7.50 , IZ  OCEANGUILD LIMITED,DAY TRIP OUT EU,Peoples Services Directorate,Other Services,F340,
http://opendatacommunities.org/id/london-borough-council/sutton,London Borough of Sutton,07/08/2020,1300912,10.63 , UBER    TRIP,TRIP FROM ACTIVITY EU,Peoples Services Directorate,Other Services,F340,
http://opendatacommunities.org/id/london-borough-council/sutton,London Borough of Sutton,06/08/2020,1300912,54.45 , AMZNMKTPLACE,HOUSEHOLD ITEMS AND FURNISHINGS EU,Peoples Services Directorate,Other Services,F340,
http://opendatacommunities.org/id/london-borough-council/sutton,London Borough of Sutton,05/08/2020,1300912,157.43 , AMZNMKTPLACE,HOUSEHOLD ITEMS AND FURNISHINGS EU,Peoples Services Directorate,Other Services,F340,
http://opendatacommunities.org/id/london-borough-council/sutton,London Borough of Sutton,04/08/2020,1300912,3.43 , UBER  TRIP HELP.UBER.C,TIP TO OPTICIANS EU,Peoples Services Directorate,Other Services,F340,
http://opendatacommunities.org/id/london-borough-council/sutton,London Borough of Sutton,04/08/2020,1300912,3.52 , UBER    TRIP,TRIP FROM OPTICIANS EU,Peoples Services Directorate,Other Services,F340,
http://opendatacommunities.org/id/london-borough-council/sutton,London Borough of Sutton,05/08/2020,1300912,(22.80), HAYMARKET MEDIA GROUP,REFUND,Peoples Services Directorate,Miscellaneous Training Courses,F304,
http://opendatacommunities.org/id/london-borough-council/sutton,London Borough of Sutton,05/08/2020,1300912,159.99 , AMZNMKTPLACE,AMAZON LIGHTING SOFTBOX - FROM GLA BID,Peoples Services Directorate,Non Government Grants,P106,
http://opendatacommunities.org/id/london-borough-council/sutton,London Borough of Sutton,05/08/2020,1300912,21.29 , MOJO HELPDESK,MOJO IT DEPT,Peoples Services Directorate,IT Licences,F385,
http://opendatacommunities.org/id/london-borough-council/sutton,London Borough of Sutton,05/08/2020,1300912,0.59 , MOJO HELPDESK,FOREIGN EXCHANGE FEE METADOT CORPORATION MOJO IT,Peoples Services Directorate,IT Licences,F385,
http://opendatacommunities.org/id/london-borough-council/sutton,London Borough of Sutton,30/07/2020,1300912,66.33 , MAILCHIMP,MAILCHIMP JULY2020,Peoples Services Directorate,Advertising/Publicity (non Staff),F240,
http://opendatacommunities.org/id/london-borough-council/sutton,London Borough of Sutton,27/07/2020,1300912,18.00 , ACE360,FEDERATION FOR IND SECTOR SKILLS AND STANDARDS RL LM,Peoples Services Directorate,Fees - Other,F299,
http://opendatacommunities.org/id/london-borough-council/sutton,London Borough of Sutton,25/08/2020,1300912,17.17 , WWW.WIGHTLINK.CO.UK,20.60 A530 0302 9999 WIGHTLINK,Peoples Services Directorate,Travelling and Subsistence Allowances,A530,
http://opendatacommunities.org/id/london-borough-council/sutton,London Borough of Sutton,13/08/2020,1300912,20.83 , SQ  ROSEHILL CARS LTD,TAXI FOR CLIENT,Peoples Services Directorate,Hired Peoples Transport (Children),E072,
http://opendatacommunities.org/id/london-borough-council/sutton,London Borough of Sutton,11/08/2020,1300912,60.00 , WWW.HABITAT.CO.UK,HOME SET UP GOODS FOR CLIENT,Peoples Services Directorate,Personal Requisites,F106,
http://opendatacommunities.org/id/london-borough-council/sutton,London Borough of Sutton,28/07/2020,1300912,579.14 , ARGOS LTD,GOODS FOR CLIENTS HOME SET UP,Peoples Services Directorate,Personal Requisites,F106,
http://opendatacommunities.org/id/london-borough-council/sutton,London Borough of Sutton,23/08/2020,1300912,15.55 , SAINSBURYS SACAT 2006,LC,Peoples Services Directorate,Personal Requisites,F106,
http://opendatacommunities.org/id/london-borough-council/sutton,London Borough of Sutton,21/08/2020,1300912,10.18 , MCDONALDS892,MC ACTIVITY,Peoples Services Directorate,Personal Requisites,F106,
http://opendatacommunities.org/id/london-borough-council/sutton,London Borough of Sutton,18/08/2020,1300912,25.00 , GIFFGAFF,DR PHONE HOPSITAL,Peoples Services Directorate,Personal Requisites,F106,
http://opendatacommunities.org/id/london-borough-council/sutton,London Borough of Sutton,17/08/2020,1300912,7.75 , MCDONALD S RESTAURANT,MC ACTIVITY,Peoples Services Directorate,Personal Requisites,F106,
http://opendatacommunities.org/id/london-borough-council/sutton,London Borough of Sutton,14/08/2020,1300912,14.95 , SUPERSTORE,JD GROC,Peoples Services Directorate,Personal Requisites,F106,
http://opendatacommunities.org/id/london-borough-council/sutton,London Borough of Sutton,12/08/2020,1300912,13.10 , THE CONNOISSEUR,DR,Peoples Services Directorate,Personal Requisites,F106,
http://opendatacommunities.org/id/london-borough-council/sutton,London Borough of Sutton,12/08/2020,1300912,4.28 , MCDONALDS,MC ACTIVITY,Peoples Services Directorate,Personal Requisites,F106,
http://opendatacommunities.org/id/london-borough-council/sutton,London Borough of Sutton,08/08/2020,1300912,27.81 , SAINSBURYS 2006,DR GROCERIES,Peoples Services Directorate,Personal Requisites,F106,
http://opendatacommunities.org/id/london-borough-council/sutton,London Borough of Sutton,06/08/2020,1300912,30.72 , BUDGENS,MA GROCERIES,Peoples Services Directorate,Personal Requisites,F106,
http://opendatacommunities.org/id/london-borough-council/sutton,London Borough of Sutton,06/08/2020,1300912,4.95 , BP WRYTHE CONNECT,LC ACTIVITY,Peoples Services Directorate,Personal Requisites,F106,
http://opendatacommunities.org/id/london-borough-council/sutton,London Borough of Sutton,05/08/2020,1300912,3.00 , ROSEHILL CAFE,MA ACTIVITY,Peoples Services Directorate,Personal Requisites,F106,
http://opendatacommunities.org/id/london-borough-council/sutton,London Borough of Sutton,04/08/2020,1300912,7.19 , PPOINT_ MICHAEL'S STOR,DR GROCERIES,Peoples Services Directorate,Personal Requisites,F106,
http://opendatacommunities.org/id/london-borough-council/sutton,London Borough of Sutton,31/07/2020,1300912,14.80 , YA HAO,DR OUT HOSPITAL,Peoples Services Directorate,Personal Requisites,F106,
http://opendatacommunities.org/id/london-borough-council/sutton,London Borough of Sutton,31/07/2020,1300912,20.30 , LIDL GB LONDON,DR GROCERIES,Peoples Services Directorate,Personal Requisites,F106,
http://opendatacommunities.org/id/london-borough-council/sutton,London Borough of Sutton,31/07/2020,1300912,5.98 , THE POST OFFICE,JM POST,Peoples Services Directorate,Personal Requisites,F106,
http://opendatacommunities.org/id/london-borough-council/sutton,London Borough of Sutton,31/07/2020,1300912,101.00 , THE POST OFFICE,JM PP,Peoples Services Directorate,Personal Requisites,F106,
http://opendatacommunities.org/id/london-borough-council/sutton,London Borough of Sutton,31/07/2020,1300912,68.97 , ARGOS LTD,DR FANS,Peoples Services Directorate,Personal Requisites,F106,
http://opendatacommunities.org/id/london-borough-council/sutton,London Borough of Sutton,29/07/2020,1300912,84.41 , LBSUTTON,JR RENT,Peoples Services Directorate,Personal Requisites,F106,
http://opendatacommunities.org/id/london-borough-council/sutton,London Borough of Sutton,24/08/2020,1300912,134.96 , ARGOS LTD,161.95 F106 0304 9999 ARGOS,Peoples Services Directorate,Personal Requisites,F106,
http://opendatacommunities.org/id/london-borough-council/sutton,London Borough of Sutton,19/08/2020,1300912,62.50 , 2MAA018104927 TD E-PMT,75.00 H301 0304 9999 TRAVEL DOCUMENT,Peoples Services Directorate,Client Care/Assistance,H301,
http://opendatacommunities.org/id/london-borough-council/sutton,London Borough of Sutton,30/07/2020,1300912,127.46 , ARGOS LTD,CLIENT GOODS,Peoples Services Directorate,Client Care/Assistance,H301,
http://opendatacommunities.org/id/london-borough-council/sutton,London Borough of Sutton,21/08/2020,1300912,608.95 , DUNELM,SETTING UP SOFA LC,Peoples Services Directorate,Set Up Costs - Children Leaving Care,H336,
http://opendatacommunities.org/id/london-borough-council/sutton,London Borough of Sutton,17/08/2020,1300912,43.99 , DUNELM LTD,JD SETTING UP,Peoples Services Directorate,Set Up Costs - Children Leaving Care,H336,
http://opendatacommunities.org/id/london-borough-council/sutton,London Borough of Sutton,17/08/2020,1300912,75.00 , DUNELM LTD,JD SETTING UP,Peoples Services Directorate,Set Up Costs - Children Leaving Care,H336,
http://opendatacommunities.org/id/london-borough-council/sutton,London Borough of Sutton,17/08/2020,1300912,216.66 , ARGOS LTD,MC SET UP,Peoples Services Directorate,Set Up Costs - Children Leaving Care,H336,
http://opendatacommunities.org/id/london-borough-council/sutton,London Borough of Sutton,07/08/2020,1300912,69.82 , B & Q 1191,JD SETTING UP,Peoples Services Directorate,Set Up Costs - Children Leaving Care,H336,
http://opendatacommunities.org/id/london-borough-council/sutton,London Borough of Sutton,31/07/2020,1300912,150.00 , AMAZON.CO.UK NF6RE4W45,JD SET UP,Peoples Services Directorate,Set Up Costs - Children Leaving Care,H336,
http://opendatacommunities.org/id/london-borough-council/sutton,London Borough of Sutton,30/07/2020,1300912,339.17 , ARGOS LTD,DR SETTING UP,Peoples Services Directorate,Set Up Costs - Children Leaving Care,H336,
http://opendatacommunities.org/id/london-borough-council/sutton,London Borough of Sutton,29/07/2020,1300912,154.17 , IKEA LTD 144 CROYDON M,DR SETTING UP,Peoples Services Directorate,Set Up Costs - Children Leaving Care,H336,
http://opendatacommunities.org/id/london-borough-council/sutton,London Borough of Sutton,29/07/2020,1300912,109.99 , ARGOS LTD,DR SET UP,Peoples Services Directorate,Set Up Costs - Children Leaving Care,H336,
http://opendatacommunities.org/id/london-borough-council/sutton,London Borough of Sutton,21/08/2020,1300912,141.66 , CURRYS ONLINE,SETTING UP TV,Peoples Services Directorate,Set Up Costs - Children Leaving Care,H336,
http://opendatacommunities.org/id/london-borough-council/sutton,London Borough of Sutton,13/08/2020,1300912,90.79 , IKEA LTD SHOP ONLINE,GOODS FOR CLIENT HOME SET UP,Peoples Services Directorate,Set Up Costs - Children Leaving Care,H336,
http://opendatacommunities.org/id/london-borough-council/sutton,London Borough of Sutton,07/08/2020,1300912,253.29 , ARGOS LTD,GOODS FOR CLIENT HOME SET UP,Peoples Services Directorate,Set Up Costs - Children Leaving Care,H336,
http://opendatacommunities.org/id/london-borough-council/sutton,London Borough of Sutton,05/08/2020,1300912,110.79 , ARGOS LTD,SETTING UP GOOD FOR CLIENT,Peoples Services Directorate,Set Up Costs - Children Leaving Care,H336,
http://opendatacommunities.org/id/london-borough-council/sutton,London Borough of Sutton,19/08/2020,1300912,284.00 , SUTTON APPLIANCES,SUTTON APPLIANCES,Peoples Services Directorate,Set Up Costs - Children Leaving Care,H336,
http://opendatacommunities.org/id/london-borough-council/sutton,London Borough of Sutton,29/07/2020,1300912,"1,336.67 ", SUTTON APPLIANCES,GOOD FOR CLIENT HOME SET UP,Peoples Services Directorate,Set Up Costs - Children Leaving Care,H336,
http://opendatacommunities.org/id/london-borough-council/sutton,London Borough of Sutton,24/08/2020,1300912,66.66 , WWW.CARPHONEWAREHO,79.99 F106 0306 9999 CARPHONE WAREHOUSE,Peoples Services Directorate,Personal Requisites,F106,
http://opendatacommunities.org/id/london-borough-council/sutton,London Borough of Sutton,17/08/2020,1300912,18.45 , PAYPAL  DISCOUNT FI,BUCKINGHAM WAY,Peoples Services Directorate,Set Up Costs - Children Leaving Care,H336,
http://opendatacommunities.org/id/london-borough-council/sutton,London Borough of Sutton,21/08/2020,1300912,101.12 , TRAVELODGE,121.34 H202 0310 9999 TRAVELODGE,Peoples Services Directorate,Accommodation - Bed and Breakfast,H202,
http://opendatacommunities.org/id/london-borough-council/sutton,London Borough of Sutton,24/08/2020,1300912,27.70 , TRAVELODGE,33.24 H202 0310 9999 TRAVELODGE,Peoples Services Directorate,Accommodation - Bed and Breakfast,H202,
http://opendatacommunities.org/id/london-borough-council/sutton,London Borough of Sutton,19/08/2020,1300912,68.82 , TRAVELODGE,82.59 H202 0310 9999 TRAVELODGE,Peoples Services Directorate,Accommodation - Bed and Breakfast,H202,
http://opendatacommunities.org/id/london-borough-council/sutton,London Borough of Sutton,25/08/2020,1300912,31.66 , TRAVELODGE,37.99 H202 0310 9999 TRAVELODGE,Peoples Services Directorate,Accommodation - Bed and Breakfast,H202,
http://opendatacommunities.org/id/london-borough-council/sutton,London Borough of Sutton,18/08/2020,1300912,42.51 , TRAVELODGE,CROYDON CENTRALE TRAVELODGE,Peoples Services Directorate,Accommodation - Bed and Breakfast,H202,
http://opendatacommunities.org/id/london-borough-council/sutton,London Borough of Sutton,31/07/2020,1300912,504.72 , HOLIDAY INNS,EMERGENCY ACCOMMODATION FOR CLIENT,Peoples Services Directorate,C.C.A Travel & Subsistance,H212,
http://opendatacommunities.org/id/london-borough-council/sutton,London Borough of Sutton,14/08/2020,1300912,498.45 , HOLIDAY INNS,ACCOMMODATION FOR CLIENT,Peoples Services Directorate,Client Care/Assistance,H301,
http://opendatacommunities.org/id/london-borough-council/sutton,London Borough of Sutton,19/08/2020,1300912,17.17 , WWW.WIGHTLINK.CO.UK,20.60 A530 0311 9999 WIGHTLINK,Peoples Services Directorate,Travelling and Subsistence Allowances,A530,
http://opendatacommunities.org/id/london-borough-council/sutton,London Borough of Sutton,27/07/2020,1300912,69.65 , WWW.TENPIN.CO.UK,ACTIVITY FOR CLIENT,Peoples Services Directorate,Personal Requisites,F106,
http://opendatacommunities.org/id/london-borough-council/sutton,London Borough of Sutton,07/08/2020,1300912,(69.65), WWW.TENPIN.CO.UK,REFUND FOR BOWLING,Peoples Services Directorate,Personal Requisites,F106,
http://opendatacommunities.org/id/london-borough-council/sutton,London Borough of Sutton,04/08/2020,1300912,27.50 , LEGOLAND WINDSOR,ACTIVITY FOR CLIENT,Peoples Services Directorate,Personal Requisites,F106,
http://opendatacommunities.org/id/london-borough-council/sutton,London Borough of Sutton,04/08/2020,1300912,3.28 , STORAGEMART UK A-9A909,EXCHANGE FEE FOR MOBICIP SUBSCRIPTION FOR SOCIAL WORKER - IT WAS PAID IN DOLLARS AS THE COMPANY IS IN AMERICA,Peoples Services Directorate,Personal Requisites,F106,
http://opendatacommunities.org/id/london-borough-council/sutton,London Borough of Sutton,03/08/2020,1300912,99.25 , MOBICIP SUBSCRIPTION,SUBSCRIPTION FOR SOCIAL WORKER,Peoples Services Directorate,Personal Requisites,F106,
http://opendatacommunities.org/id/london-borough-council/sutton,London Borough of Sutton,21/08/2020,1300912,90.33 , A & B TAXIS,108.40 H212  0311 9999 A&B TAXIS,Peoples Services Directorate,Accommodation - Bed and Breakfast,H202,
http://opendatacommunities.org/id/london-borough-council/sutton,London Borough of Sutton,21/08/2020,1300912,90.33 , A & B TAXIS,108.40 H212 0311 9999 A&B TAXIS,Peoples Services Directorate,C.C.A Travel & Subsistance,H212,
http://opendatacommunities.org/id/london-borough-council/sutton,London Borough of Sutton,20/08/2020,1300912,191.65 , CURRYS ONLINE,229.98 H301 0311 9999 CURRY,Peoples Services Directorate,Client Care/Assistance,H301,
http://opendatacommunities.org/id/london-borough-council/sutton,London Borough of Sutton,13/08/2020,1300912,300.00 , WWW.KENT.GOV.UK,TRAVEL SAVER APPLICATION,Peoples Services Directorate,Client Care/Assistance,H301,
http://opendatacommunities.org/id/london-borough-council/sutton,London Borough of Sutton,19/08/2020,1300912,16.67 , OYSTER BUS AUTOLOAD,20.00 A530 0312 9999 OYSTER (1).PDF,Peoples Services Directorate,Travelling and Subsistence Allowances,A530,
http://opendatacommunities.org/id/london-borough-council/sutton,London Borough of Sutton,14/08/2020,1300912,16.67 , OYSTER BUS AUTOLOAD,20.00 A530 0312 9999 OYSTER .PNG,Peoples Services Directorate,Travelling and Subsistence Allowances,A530,
http://opendatacommunities.org/id/london-borough-council/sutton,London Borough of Sutton,09/08/2020,1300912,16.67 , OYSTER BUS AUTOLOAD,20.00 A530 0312 9999 OYSTERR.PDF,Peoples Services Directorate,Travelling and Subsistence Allowances,A530,
http://opendatacommunities.org/id/london-borough-council/sutton,London Borough of Sutton,09/08/2020,1300912,16.67 , OYSTER BUS AUTOLOAD,20.00 A530 0312 9999 OYSTERRR.PDF,Peoples Services Directorate,Travelling and Subsistence Allowances,A530,
http://opendatacommunities.org/id/london-borough-council/sutton,London Borough of Sutton,06/08/2020,1300912,16.67 , OYSTER BUS AUTOLOAD,20.00 A530 0312 9999 OYSTER.PDF,Peoples Services Directorate,Travelling and Subsistence Allowances,A530,
http://opendatacommunities.org/id/london-borough-council/sutton,London Borough of Sutton,11/08/2020,1300912,30.00 , GEN REGISTER OFFICE,BIRTH CERTIFICATE FOR CLIENT,Peoples Services Directorate,Personal Requisites,F106,
http://opendatacommunities.org/id/london-borough-council/sutton,London Borough of Sutton,29/07/2020,1300912,15.00 , WWW.HOBBLEDOWN.COM,18.00 - F106 0312 9999 - HOBBLEDOWN FARM TICKET .PNG,Peoples Services Directorate,Personal Requisites,F106,
http://opendatacommunities.org/id/london-borough-council/sutton,London Borough of Sutton,12/08/2020,1300912,60.83 , GEN REGISTER OFFICE,BIRTH CERTIFICATE FOR CLIENT,Peoples Services Directorate,Personal Requisites,F106,
http://opendatacommunities.org/id/london-borough-council/sutton,London Borough of Sutton,14/08/2020,1300912,146.00 , THE CROWN MITRE HOTEL,CROWN & MITRE HOTEL,Peoples Services Directorate,Accommodation - Bed and Breakfast,H202,
http://opendatacommunities.org/id/london-borough-council/sutton,London Borough of Sutton,11/08/2020,1300912,78.95 , WWW.PEELHOTELS.CO.UK,CROWN & MITRE HOTEL HOTEL,Peoples Services Directorate,Accommodation - Bed and Breakfast,H202,
http://opendatacommunities.org/id/london-borough-council/sutton,London Borough of Sutton,16/08/2020,1300912,35.80 , THE CROWN MITRE HOTEL,CROWN & MITRE HOTEL BREAKFAST,Peoples Services Directorate,Accommodation - Bed and Breakfast,H202,
http://opendatacommunities.org/id/london-borough-council/sutton,London Borough of Sutton,25/08/2020,1300912,118.42 , SWI SCHOOLWEAR,142.11 H301 0312 9999 SWI SCHOOLWEAR,Peoples Services Directorate,Client Care/Assistance,H301,
http://opendatacommunities.org/id/london-borough-council/sutton,London Borough of Sutton,27/07/2020,1300912,197.46 , ARGOS LTD,GOODS FOR CLIENT HOME SET UP,Peoples Services Directorate,Personal Requisites,F106,
http://opendatacommunities.org/id/london-borough-council/sutton,London Borough of Sutton,29/07/2020,1300912,(84.17), WF  WAYFAIR 2304082464,REFUND FOR GOODS,Peoples Services Directorate,Personal Requisites,F106,
http://opendatacommunities.org/id/london-borough-council/sutton,London Borough of Sutton,04/08/2020,1300912,(50.00), QUEST APARTMENT HOTEL,HOTEL LIVERPOOL - REFUNDED DEPOSIT,Peoples Services Directorate,Accommodation - Bed and Breakfast,H202,
http://opendatacommunities.org/id/london-borough-council/sutton,London Borough of Sutton,15/08/2020,1300912,97.21 , GOOGLE  ADS5058737870,GOOGLE *ADS5058737870 (100%),Peoples Services Directorate,Fees - Other,F299,
http://opendatacommunities.org/id/london-borough-council/sutton,London Borough of Sutton,07/08/2020,1300912,171.40 , FACEBK 2H37KWJAL2,SPLIT - DONT SUFFER IN SILENCE (85.7%),Peoples Services Directorate,Advertising/Publicity (non Staff),F240,
http://opendatacommunities.org/id/london-borough-council/sutton,London Borough of Sutton,31/07/2020,1300912,79.47 , GOOGLE  ADS8517410550,GOOGLE AD WORDS PROMOTING DA SERVICES IN SUTTON,Peoples Services Directorate,Advertising/Publicity (non Staff),F240,
http://opendatacommunities.org/id/london-borough-council/sutton,London Borough of Sutton,28/07/2020,1300912,131.25 , TVLICENSING.CO.UK,TV LICENSE FOR SUTTON FAMILY CENTRE,Peoples Services Directorate,Personal Requisites,F106,
http://opendatacommunities.org/id/london-borough-council/sutton,London Borough of Sutton,21/08/2020,1300912,16.67 , OYSTER AUTO TOPUP,20.00 A530 0359 9999 - OYSTER TOP-UP - 21.08.2020.PDF,Peoples Services Directorate,Travelling and Subsistence Allowances,A530,
http://opendatacommunities.org/id/london-borough-council/sutton,London Borough of Sutton,20/08/2020,1300912,16.67 , OYSTER BUS AUTOLOAD,20.00 A530 0359 9999 OYSTER - 20.08.2020.PDF,Peoples Services Directorate,Travelling and Subsistence Allowances,A530,
http://opendatacommunities.org/id/london-borough-council/sutton,London Borough of Sutton,31/07/2020,1300912,16.67 , OYSTER BUS AUTOLOAD,20.00 A530 0359 9999 OYSTER TOP-UP.PDF,Peoples Services Directorate,Travelling and Subsistence Allowances,A530,
http://opendatacommunities.org/id/london-borough-council/sutton,London Borough of Sutton,31/07/2020,1300912,16.67 , OYSTER BUS AUTOLOAD,20.00 A530 0359 9999 OYSTER.PDF,Peoples Services Directorate,Travelling and Subsistence Allowances,A530,
http://opendatacommunities.org/id/london-borough-council/sutton,London Borough of Sutton,29/07/2020,1300912,20.83 , OYSTER ONLINE,25.00 A530 0359 9999 OYSTER 3.PDF,Peoples Services Directorate,Travelling and Subsistence Allowances,A530,
http://opendatacommunities.org/id/london-borough-council/sutton,London Borough of Sutton,29/07/2020,1300912,20.83 , OYSTER ONLINE,25.00 A530 0359 9999 OYSTER 2.PDF,Peoples Services Directorate,Travelling and Subsistence Allowances,A530,
http://opendatacommunities.org/id/london-borough-council/sutton,London Borough of Sutton,29/07/2020,1300912,20.83 , OYSTER ONLINE,25.00 A530 0359 9999 OYSTER 1.PDF,Peoples Services Directorate,Travelling and Subsistence Allowances,A530,
http://opendatacommunities.org/id/london-borough-council/sutton,London Borough of Sutton,30/07/2020,1300912,14.99 , DOMINOS PIZZA UK & IRE,CATERING FOR CHILDREN IN CARE COUNCIL VIRTUAL MEETING WITH TRIBE MEMBERS,Peoples Services Directorate,LAC - Education,F269,
http://opendatacommunities.org/id/london-borough-council/sutton,London Borough of Sutton,30/07/2020,1300912,15.99 , DOMINOS PIZZA UK & IRE,CATERING FOR CHILDREN IN CARE COUNCIL VIRTUAL MEETING WITH TRIBE MEMBERS,Peoples Services Directorate,LAC - Education,F269,
http://opendatacommunities.org/id/london-borough-council/sutton,London Borough of Sutton,30/07/2020,1300912,9.99 , DOMINOS PIZZA UK & IRE,CATERING FOR CHILDREN IN CARE COUNCIL VIRTUAL MEETING WITH TRIBE MEMBERS,Peoples Services Directorate,LAC - Education,F269,
http://opendatacommunities.org/id/london-borough-council/sutton,London Borough of Sutton,30/07/2020,1300912,15.99 , DOMINOS PIZZA UK & IRE,CATERING FOR CHILDREN IN CARE COUNCIL VIRTUAL MEETING WITH TRIBE MEMBERS,Peoples Services Directorate,LAC - Education,F269,
http://opendatacommunities.org/id/london-borough-council/sutton,London Borough of Sutton,30/07/2020,1300912,15.99 , DOMINOS PIZZA UK & IRE,CATERING FOR CHILDREN IN CARE COUNCIL VIRTUAL MEETING WITH TRIBE MEMBERS,Peoples Services Directorate,LAC - Education,F269,
http://opendatacommunities.org/id/london-borough-council/sutton,London Borough of Sutton,12/08/2020,1300912,717.50 , PREMIER INN,ACCOMMODATION FOR CLIENT,Peoples Services Directorate,Accommodation - Bed and Breakfast,H202,
http://opendatacommunities.org/id/london-borough-council/sutton,London Borough of Sutton,06/08/2020,1300912,401.67 , PREMIER INN,EMERGENCY ACCOMMODATION FOR CLIENT,Peoples Services Directorate,Accommodation - Bed and Breakfast,H202,
http://opendatacommunities.org/id/london-borough-council/sutton,London Borough of Sutton,21/08/2020,1300912,723.33 , PREMIER INN,868.00 H202 0371 9999 PREMIER INN,Peoples Services Directorate,Accommodation - Bed and Breakfast,H202,
http://opendatacommunities.org/id/london-borough-council/sutton,London Borough of Sutton,21/08/2020,1300912,177.50 , PREMIER INN,213.00 H202 0371 9999 PREMIER INN,Peoples Services Directorate,Accommodation - Bed and Breakfast,H202,
http://opendatacommunities.org/id/london-borough-council/sutton,London Borough of Sutton,31/07/2020,1300912,144.97 , PREMIER INN,HOTEL FOR CLIENT,Peoples Services Directorate,C.C.A Travel & Subsistance,H212,
http://opendatacommunities.org/id/london-borough-council/sutton,London Borough of Sutton,03/08/2020,1300912,363.33 , PREMIER INN,EMERGENCY ACCOMMODATION FOR CLIENT,Peoples Services Directorate,Client Care/Assistance,H301,
http://opendatacommunities.org/id/london-borough-council/sutton,London Borough of Sutton,20/08/2020,1300912,16.67 , OYSTER BUS AUTOLOAD,20.00 A503 0383 9999 OYSTER.PDF,Peoples Services Directorate,Travelling and Subsistence Allowances,A530,
http://opendatacommunities.org/id/london-borough-council/sutton,London Borough of Sutton,31/07/2020,1300912,16.67 , OYSTER BUS AUTOLOAD,20.00 A530 0383 9999 OYSTER TOP-UP.PDF,Peoples Services Directorate,Travelling and Subsistence Allowances,A530,
http://opendatacommunities.org/id/london-borough-council/sutton,London Borough of Sutton,29/07/2020,1300912,20.83 , OYSTER ONLINE,25.00 A530 0383 9999 OYSTER.PDF,Peoples Services Directorate,Travelling and Subsistence Allowances,A530,
http://opendatacommunities.org/id/london-borough-council/sutton,London Borough of Sutton,19/08/2020,1300912,137.84 , SWI SCHOOLWEAR,SWI,Peoples Services Directorate,Client Care/Assistance,H301,
http://opendatacommunities.org/id/london-borough-council/sutton,London Borough of Sutton,18/08/2020,1300912,6.21 , AMZNMKTPLACE,"SPLIT - CANDURE HAIRDRESSING BARBER HAIR SCISSOR FOR PROFESSIONAL HAIRDRESSERS BARBERS STAINLESS STEEL HAIR CUTTING SHEARS - FOR SALON BARBERS, MEN, WOMEN, CHILDREN AND ADULTS (10.65%)",Peoples Services Directorate,LAC - Education,F269,
http://opendatacommunities.org/id/london-borough-council/sutton,London Borough of Sutton,18/08/2020,1300912,27.41 , AMZNMKTPLACE,SPLIT - HIYORLIK BRAZILIAN STRAIGHT VIRGIN HAIR WEAVE SINGLE BUNDLE 20 INCH HUMAN HAIR EXTENSIONS UNPROCESSED HUMAN HAIR WEFT CAN BE DYE (47.03%),Peoples Services Directorate,LAC - Education,F269,
http://opendatacommunities.org/id/london-borough-council/sutton,London Borough of Sutton,18/08/2020,1300912,29.59 , AMZNMKTPLACE,"SPLIT - ANSELF 26"" 100% REAL HUMAN HAIR TRAINING HEAD, HAIR PRACTICE MANIKIN HEAD WITH HAIR CLAMP HOLDER, HAIRDRESSING TRAINING HEAD, COSMETOLOGY TRAINING HEA (42.32%)",Peoples Services Directorate,LAC - Education,F269,
http://opendatacommunities.org/id/london-borough-council/sutton,London Borough of Sutton,18/08/2020,1300912,19.99 , AMZNMKTPLACE AMAZON.CO,"SPLIT - UV LED NAIL LAMP, 84W NAIL POLISH DRYER AUTOMATIC SENSOR 42 UV LIGHT CURING BEADS 3 TIMER PROFESSIONAL MANICURE/PEDICURE FOR UV GEL/UV BUILDER/GEL NAI (100%)",Peoples Services Directorate,LAC - Education,F269,
http://opendatacommunities.org/id/london-borough-council/sutton,London Borough of Sutton,17/08/2020,1300912,6.04 , AMZNMKTPLACE AMAZON.CO,SPLIT - TNBL ULTRA ADHESIVE ACRYLIC CLEAR LIQUID MONOMER 50ML (100%),Peoples Services Directorate,LAC - Education,F269,
http://opendatacommunities.org/id/london-borough-council/sutton,London Borough of Sutton,16/08/2020,1300912,27.99 , AMZNMKTPLACE AMAZON.CO,SPLIT - REFILL FAKE NAILS TIPS - NAIL ART TRAINING IMITATION HAND FOR NAIL ART STARTER TRAINING/NAIL LOVERS/MANICURIST/BEAUTICIAN/SELF-TAUGHT NAIL ART - PRACT (105.27%),Peoples Services Directorate,LAC - Education,F269,
http://opendatacommunities.org/id/london-borough-council/sutton,London Borough of Sutton,16/08/2020,1300912,(1.40), AMZNMKTPLACE AMAZON.CO,BALANCING ENTRY AMOUNT (-15.81%),Peoples Services Directorate,LAC - Education,F269,
http://opendatacommunities.org/id/london-borough-council/sutton,London Borough of Sutton,15/08/2020,1300912,5.99 , AMZNMKTPLACE AMAZON.CO,SPLIT - HOSUNG NATURAL FALSE NAILS &#XFF0C; ACRYLIC FALSE NAIL SET&#XFF0C;500 PIECES FULL COVER FAKE ART NAIL TIPS + 1 PIECE FALSE NAIL CLIPPER&#XFF0C; 10 SIZES FALSE NAILS ARTIFICIAL IN CLEAR BOX (57.16%),Peoples Services Directorate,LAC - Education,F269,
http://opendatacommunities.org/id/london-borough-council/sutton,London Borough of Sutton,15/08/2020,1300912,4.49 , AMZNMKTPLACE AMAZON.CO,BALANCING ENTRY AMOUNT (42.84%),Peoples Services Directorate,LAC - Education,F269,
http://opendatacommunities.org/id/london-borough-council/sutton,London Borough of Sutton,29/07/2020,1300912,11.13 , AMAZON.CO.UK EW6X00D85,SPLIT - MONOPOLY JUNIOR GAME (87.72%),Peoples Services Directorate,LAC - Education,F269,
http://opendatacommunities.org/id/london-borough-council/sutton,London Borough of Sutton,29/07/2020,1300912,1.56 , AMAZON.CO.UK EW6X00D85,BALANCING ENTRY AMOUNT (12.28%),Peoples Services Directorate,LAC - Education,F269,
http://opendatacommunities.org/id/london-borough-council/sutton,London Borough of Sutton,11/08/2020,1300912,5.75 , WM MORRISONS STORE,ANTI BAC WIPES,Resources Directorate,Subscriptions - General,F450,
http://opendatacommunities.org/id/london-borough-council/sutton,London Borough of Sutton,03/08/2020,1300912,8.32 , SPOTIFY UK,MUSIC FOR WEDDINGS,Resources Directorate,Subscriptions - General,F450,
http://opendatacommunities.org/id/london-borough-council/sutton,London Borough of Sutton,20/08/2020,1300912,4.17 , WILKO RETAIL LIMITED,PLANTS FOR GARDEN,Resources Directorate,Miscellaneous Expenses,F620,
http://opendatacommunities.org/id/london-borough-council/sutton,London Borough of Sutton,30/07/2020,1300912,48.00 , WWW.SWLAKESTRUST.ORG.U,PAYMENT MADE ON CREDIT CARD IN ERROR,Resources Directorate,Miscellaneous Expenses,F620,
http://opendatacommunities.org/id/london-borough-council/sutton,London Borough of Sutton,30/07/2020,1300912,339.00 , CENTRICA HIVE, HIVE HEATING PACK FOR THE WINNER OF THE CLIMATE EMERGENCY PRIZE DRAW,"Environment, Housing & Regeneration Directorate",Community Initiatives,F322,
http://opendatacommunities.org/id/london-borough-council/sutton,London Borough of Sutton,10/08/2020,1300912,70.00 , EB  ONLINE TRAINING CH,"THIS PROGRAMME HAS BEEN SPECIALLY WRITTEN FOR COUNCILLORS AND OFFICERS WHO WILL BE CHAIRING MEETINGS ONLINE USING PLATFORMS SUCH AS MS TEAMS, GOOGLE MEET OR ZOOM.",Resources Directorate,Training - Course Fees,A520,
http://opendatacommunities.org/id/london-borough-council/sutton,London Borough of Sutton,17/08/2020,1300912,6.31 , MAILCHIMP    MONTHLY,WEB HOSTING,Resources Directorate,Fees - Computer Software,F384,
http://opendatacommunities.org/id/london-borough-council/sutton,London Borough of Sutton,14/08/2020,1300912,229.46 , MAILCHIMP    MONTHLY,WEB HOSTING,Resources Directorate,Fees - Computer Software,F384,
http://opendatacommunities.org/id/london-borough-council/sutton,London Borough of Sutton,16/08/2020,1300912,32.65 , BUNN LEISURE,PAYMENT MADE ON CREDIT CARD IN ERROR,Resources Directorate,Refreshments,F155,
http://opendatacommunities.org/id/london-borough-council/sutton,London Borough of Sutton,09/08/2020,1300912,10.38 , AMZNMKTPLACE,OFFICE CHAIR COVERS REQUESTED BY STAFF MEMBER AT THE QUAD SO SHE FEELS COMFORTABLE TO RETURN TO OFFICE DURING COVID,Resources Directorate,Personal Requisites,F106,
http://opendatacommunities.org/id/london-borough-council/sutton,London Borough of Sutton,07/08/2020,1300912,19.29 , AMZNMKTPLACE AMAZON.CO,FACE MASK FOR STAFF MEMBERS AT THE QUAD FOR WHEN THE STAFF RETURN TO OFFICE,Resources Directorate,Personal Requisites,F106,
http://opendatacommunities.org/id/london-borough-council/sutton,London Borough of Sutton,06/08/2020,1300912,9.56 , AMAZON.CO.UK 1V7DL9X75,KEYBOARD FOR STAFF MEMBER WHEN THEY GO BACK TO OFFICE DUE TO COVID,Resources Directorate,Personal Requisites,F106,
http://opendatacommunities.org/id/london-borough-council/sutton,London Borough of Sutton,06/08/2020,1300912,6.66 , AMAZON.CO.UK 5584W3495,MOUSE FOR STAFF MEMBER FOR WHEN THEY GO BACK TO OFFICE DUE TO COVID,Resources Directorate,Personal Requisites,F106,
http://opendatacommunities.org/id/london-borough-council/sutton,London Borough of Sutton,13/08/2020,1300912,(19.29), AMZNMKTPLACE AMAZON.CO,REFUND FROM AMAZON FOR THE FACE MASKS,Resources Directorate,Personal Requisites,F106,
http://opendatacommunities.org/id/london-borough-council/sutton,London Borough of Sutton,25/08/2020,1300912,"2,750.00 ", CS MORRISONS GIFT CARD,"3,3000.00 F620 4114 9999 MORRISON VOUCHERS",Resources Directorate,Miscellaneous Expenses,F620,
http://opendatacommunities.org/id/london-borough-council/sutton,London Borough of Sutton,22/08/2020,1300912,20.00 , DAWSONS,PLAQUE FOR MAYORAL PORTRAIT,Resources Directorate,Materials - General,F100,
http://opendatacommunities.org/id/london-borough-council/sutton,London Borough of Sutton,13/08/2020,1300912,11.99 , ZOOM.GBP,ZOOM SUBSCRIPTION,"Environment, Housing & Regeneration Directorate",Subscriptions - General,F450,
http://opendatacommunities.org/id/london-borough-council/sutton,London Borough of Sutton,28/07/2020,1300912,175.00 , APM,APM - MEMBERSHIP - GP,"Environment, Housing & Regeneration Directorate",Subscriptions - General,F450,
http://opendatacommunities.org/id/london-borough-council/sutton,London Borough of Sutton,18/08/2020,1300912,179.99 , ARGOS LTD,CL&G,Resources Directorate,Grants,F473,
http://opendatacommunities.org/id/london-borough-council/sutton,London Borough of Sutton,17/08/2020,1300912,259.99 , ARGOS LTD,CL&G,Resources Directorate,Grants,F473,
http://opendatacommunities.org/id/london-borough-council/sutton,London Borough of Sutton,13/08/2020,1300912,477.95 , ARGOS LTD,CL&G,Resources Directorate,Grants,F473,
http://opendatacommunities.org/id/london-borough-council/sutton,London Borough of Sutton,13/08/2020,1300912,161.95 , ARGOS LTD,CL&G,Resources Directorate,Grants,F473,
http://opendatacommunities.org/id/london-borough-council/sutton,London Borough of Sutton,11/08/2020,1300912,189.99 , ARGOS LTD,CL&G,Resources Directorate,Grants,F473,
http://opendatacommunities.org/id/london-borough-council/sutton,London Borough of Sutton,11/08/2020,1300912,259.99 , ARGOS LTD,CL&G,Resources Directorate,Grants,F473,
http://opendatacommunities.org/id/london-borough-council/sutton,London Borough of Sutton,11/08/2020,1300912,161.95 , ARGOS LTD,CL&G,Resources Directorate,Grants,F473,
http://opendatacommunities.org/id/london-borough-council/sutton,London Borough of Sutton,11/08/2020,1300912,179.99 , ARGOS LTD,CL&G,Resources Directorate,Grants,F473,
http://opendatacommunities.org/id/london-borough-council/sutton,London Borough of Sutton,07/08/2020,1300912,129.99 , ARGOS LTD,CL&G,Resources Directorate,Grants,F473,
http://opendatacommunities.org/id/london-borough-council/sutton,London Borough of Sutton,06/08/2020,1300912,864.93 , ARGOS LTD,CL&G,Resources Directorate,Grants,F473,
http://opendatacommunities.org/id/london-borough-council/sutton,London Borough of Sutton,06/08/2020,1300912,299.99 , ARGOS LTD,CL&G,Resources Directorate,Grants,F473,
http://opendatacommunities.org/id/london-borough-council/sutton,London Borough of Sutton,03/08/2020,1300912,(308.99), ARGOS LTD,CL&G,Resources Directorate,Grants,F473,
http://opendatacommunities.org/id/london-borough-council/sutton,London Borough of Sutton,31/07/2020,1300912,149.99 , ARGOS LTD,CL&G,Resources Directorate,Grants,F473,
http://opendatacommunities.org/id/london-borough-council/sutton,London Borough of Sutton,31/07/2020,1300912,308.99 , ARGOS LTD,CL&G,Resources Directorate,Grants,F473,
http://opendatacommunities.org/id/london-borough-council/sutton,London Borough of Sutton,31/07/2020,1300912,103.94 , ARGOS LTD,CL&G,Resources Directorate,Grants,F473,
http://opendatacommunities.org/id/london-borough-council/sutton,London Borough of Sutton,28/07/2020,1300912,428.99 , ARGOS LTD,CL&G,Resources Directorate,Grants,F473,
http://opendatacommunities.org/id/london-borough-council/sutton,London Borough of Sutton,27/07/2020,1300912,191.95 , ARGOS LTD,CL&G,Resources Directorate,Grants,F473,
http://opendatacommunities.org/id/london-borough-council/sutton,London Borough of Sutton,25/08/2020,1300912,704.94 , ARGOS LTD,CL&G,Resources Directorate,Grants,F473,
http://opendatacommunities.org/id/london-borough-council/sutton,London Borough of Sutton,25/08/2020,1300912,(138.00), ARGOS LTD,CREDIT ARGOS,Resources Directorate,Grants,F473,
http://opendatacommunities.org/id/london-borough-council/sutton,London Borough of Sutton,20/08/2020,1300912,(3.95), ARGOS LTD,CREDIT ARGOS,Resources Directorate,Grants,F473,
http://opendatacommunities.org/id/london-borough-council/sutton,London Borough of Sutton,03/08/2020,1300912,6.36 , AWS EMEA,Fraudulent transaction to be refunded,Resources Directorate,Fees - Other,F299,
http://opendatacommunities.org/id/london-borough-council/sutton,London Borough of Sutton,05/08/2020,1300912,180.00 , PWC SHOP DIGITAL,MTD SOFTWARE FOR LBS & RBK - PAYROLL AND TAXATION,Resources Directorate,Fees - Computer Software,F384,
http://opendatacommunities.org/id/london-borough-council/sutton,London Borough of Sutton,14/08/2020,1300912,75.00 , ROYAL BOROUGH OF KINGS,GARDEN WASTE TEST PAYMNET,Resources Directorate,Miscellaneous Expenses,F620,
http://opendatacommunities.org/id/london-borough-council/sutton,London Borough of Sutton,14/08/2020,1300912,(75.00), ROYAL BOROUGH OF KINGS,REFUND FOR GARDEN WASTE TEST PAYMENT,Resources Directorate,Miscellaneous Expenses,F620,
http://opendatacommunities.org/id/london-borough-council/sutton,London Borough of Sutton,27/07/2020,1300912,40.00 , WP-COURTEL COMMUNI,COURTEL COMMS FOR RICHARD GOODWIN TO BE CODED TO HOUSING,Resources Directorate,Subscriptions - General,F450,
http://opendatacommunities.org/id/london-borough-council/sutton,London Borough of Sutton,29/07/2020,1300912,16.66 , ARGOS LTD,FOR CLIENT PRODUCT,Peoples Services Directorate,Client Care/Assistance,H301,
http://opendatacommunities.org/id/london-borough-council/sutton,London Borough of Sutton,04/08/2020,1300912,87.37 , STORAGEMART UK A-9A909,STORAGE FOR CLIENT,Peoples Services Directorate,Offsite Storage,F231,
http://opendatacommunities.org/id/london-borough-council/sutton,London Borough of Sutton,14/08/2020,1300912,165.00 , CORERFIDLTD,WRITABLE TAGS FOR ELECTRONIC MONITORING SOLUTION,Peoples Services Directorate,Other Equipment - Purchase,F015,
http://opendatacommunities.org/id/london-borough-council/sutton,London Borough of Sutton,24/08/2020,1300912,38.75 , WILKO RETAIL LIMITED,DISPOSABLE BAGS FOR THE MAKING UP OF PPE (CURRENTLY NOT AVAILABLE THROUGH LBS CENTRAL STOCK),Peoples Services Directorate,Materials - General,F100,
http://opendatacommunities.org/id/london-borough-council/sutton,London Borough of Sutton,30/07/2020,1300912,25.10 , WILKO RETAIL LIMITED,25.00 WILKO START PPE F106 6452 6619,Peoples Services Directorate,Personal Requisites,F106,
http://opendatacommunities.org/id/london-borough-council/sutton,London Borough of Sutton,21/08/2020,1300912,75.00 , ALLIUM,FUNERAL WREATH,Peoples Services Directorate,Burials/Cremations,H303,
http://opendatacommunities.org/id/london-borough-council/sutton,London Borough of Sutton,18/08/2020,1300912,11.00 , LBS REGISTRARS,DEATH CERTIFICATE,Peoples Services Directorate,Burials/Cremations,H303,
http://opendatacommunities.org/id/london-borough-council/sutton,London Borough of Sutton,07/08/2020,1300912,28.60 , FACEBK 2H37KWJAL2,SPLIT -  TEST AND TRACE (14.3%),Peoples Services Directorate,Corporate Publicity,F356,
